Workbook

Sheet ORÇAMENTO
A1: <---- NUMERAR SERVIÇOS PARA CPU | C1: Ministério do Desenvolvimento Regional
C2: Companhia de Desenvolvimento dos Vales do São Francisco e do Parnaíba
C3: 1ª Superintendência Regional
B5: OBRA: | C5: PAVIMENTAÇÃO ASFÁLTICA EM CBUQ - VIAS DIVERSAS - BAIRROS N.SRA DO ROSÁRIO E CÍCERO PASSOS (PIRAPORA / MG)
B6: DATA: | C6: AGOSTO / 2023 | G6: BDI Serviços: | I6: ='BDI SERV'!D31/100 -> 0.2135
B7: PRAZO DE EXECUÇÃO: 180 DIAS | G7: BDI Serviços: | I7: ='BDI FORN'!D31/100 -> 0.15
B8: ITEM | C8: DISCRIMINAÇÃO | D8: REFER. | E8: UNID. | F8: QUANT. | G8: P. UNITÁRIO | H8: P.UNIT.C/ BDI | I8: P. TOTAL
A9: A | B9: 1 | C9: SERVIÇOS PRELIMINARES | I9: =SUM(I10:I14) -> 198006.09
A10: 1 | B10: 1.1 | C10: MOBILIZAÇÃO E DESMOBILIZAÇÃO | D10: CPU.1 | E10: GL | F10: 1 | G10: =VLOOKUP(A10,CPU!$A$1:$N$4671,9) -> 15927.66 | H10: =VLOOKUP(A10,CPU!$A$1:$N$4671,10) -> 19328.22 | I10: =ROUND(F10*H10,2) -> 19328.22
A11: 2 | B11: 1.2 | C11: ADMINISTRAÇÃO LOCAL | D11: CPU.2 | E11: GL | F11: 1 | G11: =VLOOKUP(A11,CPU!$A$1:$N$4671,9) -> 125308.5 | H11: =VLOOKUP(A11,CPU!$A$1:$N$4671,10) -> 152061.86 | I11: =ROUND(F11*H11,2) -> 152061.86
A12: 3 | B12: 1.3 | C12: CANTEIRO DE OBRAS | D12: CPU.3 | E12: GL | F12: 1 | G12: =VLOOKUP(A12,CPU!$A$1:$N$4671,9) -> 18107.4 | H12: =VLOOKUP(A12,CPU!$A$1:$N$4671,10) -> 21973.33 | I12: =ROUND(F12*H12,2) -> 21973.33
A13: 4 | B13: 1.4 | C13: PLACA DE OBRA EM CHAPA DE AÇO GALVANIZADO | D13: 103689 | E13: M2 | F13: 6 | G13: =VLOOKUP(A13,CPU!$A$1:$N$4671,9) -> 340.98 | H13: =VLOOKUP(A13,CPU!$A$1:$N$4671,10) -> 413.78 | I13: =ROUND(F13*H13,2) -> 2482.68
A14: 5 | B14: 1.5 | C14: LOCAÇÃO DE PAVIMENTAÇÃO | D14: 99064 | E14: M | F14: 2700 | G14: =VLOOKUP(A14,CPU!$A$1:$N$4671,9) -> 0.66 | H14: =VLOOKUP(A14,CPU!$A$1:$N$4671,10) -> 0.8 | I14: =ROUND(F14*H14,2) -> 2160
A15: B | B15: 2 | C15: TERRAPLANAGEM E PAVIMENTAÇÃO | I15: =SUM(I16:I22) -> 605481.35
A16: 6 | B16: 2.1 | C16: ESCAVAÇÃO HORIZONTAL EM SOLO DE 1A CATEGORIA | D16: 101116 | E16: M3 | F16: 6480 | G16: =VLOOKUP(A16,CPU!$A$1:$N$4671,9) -> 1.87 | H16: =VLOOKUP(A16,CPU!$A$1:$N$4671,10) -> 2.27 | I16: =ROUND(F16*H16,2) -> 14709.6
A17: 7 | B17: 2.2 | C17: CARGA, MANOBRA E DESCARGA DE SOLOS E MATERIAIS GRANULARES EM CAMINHÃO BASCULANTE | D17: 100976 | E17: M3 | F17: 6480 | G17: =VLOOKUP(A17,CPU!$A$1:$N$4671,9) -> 6.49 | H17: =VLOOKUP(A17,CPU!$A$1:$N$4671,10) -> 7.88 | I17: =ROUND(F17*H17,2) -> 51062.4
A18: 8 | B18: 2.3 | C18: REGULARIZAÇÃO E COMPACTAÇÃO DO SUBLEITO | D18: 100577 | E18: M2 | F18: 21600 | G18: =VLOOKUP(A18,CPU!$A$1:$N$4671,9) -> 1.08 | H18: =VLOOKUP(A18,CPU!$A$1:$N$4671,10) -> 1.31 | I18: 28296
A19: 9 | B19: 2.4 | C19: EXECUÇÃO E COMPACTAÇÃO DE BASE E OU SUB-BASE PARA PAVIMENTAÇÃO DE SOLO BRITA - 50/50 - EXCLUSIVE SOLO, ESCAVAÇÃO, CARGA E TRANSPORTE | D19: 100565 | E19: M3 | F19: 3240 | G19: =VLOOKUP(A19,CPU!$A$1:$N$4671,9) -> 96.6 | H19: =VLOOKUP(A19,CPU!$A$1:$N$4671,10) -> 117.22 | I19: 379792.8
A20: 10 | B20: 2.5 | C20: IMPRIMAÇÃO COM EMULSÃO ASFÁLTICA (EAI) | D20: 96401 | E20: M2 | F20: 21600 | G20: =VLOOKUP(A20,CPU!$A$1:$N$4671,9) -> 1.11 | H20: =VLOOKUP(A20,CPU!$A$1:$N$4671,10) -> 1.35 | I20: 29160
A21: 11 | B21: 2.6 | C21: PINTURA DE LIGAÇÃO COM EMULSÃO ASFÁLTICA RR-2C | D21: 96402 | E21: M2 | F21: 19750 | G21: =VLOOKUP(A21,CPU!$A$1:$N$4671,9) -> 0.91 | H21: =VLOOKUP(A21,CPU!$A$1:$N$4671,10) -> 1.1 | I21: 21725
A22: 12 | B22: 2.7 | C22: EXECUÇÃO DE PAVIMENTO COM APLICAÇÃO DE CONCRETO ASFÁLTICO USINADO A QUENTE (CBUQ), CAMADA DE ROLAMENTO - EXCLUSIVE TRANSPORTE | D22: 95995 | E22: M3 | F22: 595 | G22: =VLOOKUP(A22,CPU!$A$1:$N$4671,9) -> 111.82 | H22: =VLOOKUP(A22,CPU!$A$1:$N$4671,10) -> 135.69 | I22: 80735.55
A23: C | B23: 3 | C23: TRANSPORTE DE MATERIAIS | I23: =SUM(I24:I27) -> 595262
A24: 13 | B24: 3.1 | C24: TRANSPORTE COM CAMINHÃO BASCULANTE, EM VIA URBANA PAVIMENTADA | D24: 95877 | E24: M3XKM | F24: 132999.9995 | G24: =VLOOKUP(A24,CPU!$A$1:$N$4671,9) -> 1.62 | H24: =VLOOKUP(A24,CPU!$A$1:$N$4671,10) -> 1.97 | I24: =ROUND(F24*H24,2) -> 262010
A25: 13.5 | B25: 3.2 | C25: TRANSPORTE COM CAMINHÃO BASCULANTE, EM VIA URBANA PAVIMENTADA - ADICIONAL PARA DMT EXCEDENTE A 30KM | D25: 95427 | E25: M3XKM | F25: 405000 | G25: =VLOOKUP(A25,CPU!$A$1:$N$4671,9) -> 0.66 | H25: =VLOOKUP(A25,CPU!$A$1:$N$4671,10) -> 0.8 | I25: =ROUND(F25*H25,2) -> 324000
A26: 14 | B26: 3.3 | C26: TRANSPORTE COM CAMINHÃO CARROCERIA 9T, EM VIA URBANA PAVIMENTADA | D26: 100947 | E26: TXKM | F26: 999.9982608 | G26: =VLOOKUP(A26,CPU!$A$1:$N$4671,9) -> 1.93 | H26: =VLOOKUP(A26,CPU!$A$1:$N$4671,10) -> 2.34 | I26: =ROUND(F26*H26,2) -> 2340
A27: 15 | B27: 3.4 | C27: TRANSPORTE COM CAMINHÃO TANQUE DE TRANSPORTE DE MATERIAL ASFÁLTICO DE 30000 L, EM VIA URBANA PAVIMENTADA (BDI DIFERENCIADO) | D27: 102331 | E27: TXKM | F27: 12800 | G27: =VLOOKUP(A27,CPU!$A$1:$N$4671,9) -> 0.47 | H27: =VLOOKUP(A27,CPU!$A$1:$N$4671,10) -> 0.54 | I27: =ROUND(F27*H27,2) -> 6912
A28: D | B28: 4 | C28: OBRAS COMPLEMENTARES | I28: =SUM(I29:I32) -> 460163.88
A29: 16 | B29: 4.1 | C29: GUIA (MEIO-FIO) E SARJETA CONJUGADOS DE CONCRETO, MOLDADA IN LOCO COM EXTRUSORA, 45 CM BASE (15 CM BASE DA GUIA + 30 CM BASE DA SARJETA) X 22 CM ALTURA | D29: 94267 | E29: M | F29: 5400 | G29: =VLOOKUP(A29,CPU!$A$1:$N$4671,9) -> 57.38 | H29: =VLOOKUP(A29,CPU!$A$1:$N$4671,10) -> 69.63 | I29: =ROUND(F29*H29,2) -> 376002
A30: 17 | B30: 4.2 | C30: FORNECIMENTO E INSTALAÇÃO DE PLACA DE SINALIZAÇÃO VIÁRIA - REGULAMENTAÇÃO OCTOGONAL (PARE) 0,60MX0,60M | D30: CPU.4 | E30: UN. | F30: 36 | G30: =VLOOKUP(A30,CPU!$A$1:$N$4671,9) -> 444.46 | H30: =VLOOKUP(A30,CPU!$A$1:$N$4671,10) -> 539.35 | I30: =ROUND(F30*H30,2) -> 19416.6
A31: 18 | B31: 4.3 | C31: FORNECIMENTO E INSTALAÇÃO DE PLACA DE IDENTIFICACAO DE RUA EM CHAPA DE AÇO PINTADA COM PELÍCULA DE ALTA INTENSIDADE, 45 CM X 20 CM - INCLUSIVE SUPORTE DE MADEIRA, CONFORME PROJETO (02 PLACAS POR SUPORTE) | D31: CPU.5 | E31: UN. | F31: 36 | G31: =VLOOKUP(A31,CPU!$A$1:$N$4671,9) -> 234.22 | H31: =VLOOKUP(A31,CPU!$A$1:$N$4671,10) -> 284.23 | I31: =ROUND(F31*H31,2) -> 10232.28
A32: 19 | B32: 4.4 | C32: PINTURA DE EIXO VIÁRIO SOBRE ASFALTO COM TINTA RETRORREFLETIVA A BASE DE RESINA ACRÍLICA COM MICROESFERAS DE VIDRO, APLICAÇÃO MECÂNICA COM DEMARCADORA AUTOPROPELIDA | D32: 102512 | E32: M | F32: 8100 | G32: =VLOOKUP(A32,CPU!$A$1:$N$4671,9) -> 5.55 | H32: =VLOOKUP(A32,CPU!$A$1:$N$4671,10) -> 6.73 | I32: =ROUND(F32*H32,2) -> 54513
A33: E | B33: 5 | C33: FORNECIMENTOS - MATERIAL ASFÁLTICO (BDI DIFERENCIADO) | I33: =SUM(I34:I36) -> 1155903.92
A34: 20 | B34: 5.1 | C34: AQUISIÇÃO DE EMULSÃO ASFÁLTICA PARA IMPRIMAÇÃO (EAI) - EXCLUSIVE TRANSPORTE | D34: CPU.6 | E34: T | F34: 29.5 | G34: =VLOOKUP(A34,CPU!$A$1:$N$4671,9) -> 2272.33 | H34: =VLOOKUP(A34,CPU!$A$1:$N$4671,10) -> 2613.18 | I34: =ROUND(F34*H34,2) -> 77088.81
A35: 21 | B35: 5.2 | C35: AQUISIÇÃO DE EMULSAO ASFALTICA CATIONICA RR-2C - EXCLUSIVE TRANSPORTE | D35: CPU.7 | E35: T | F35: 8.9975 | G35: =VLOOKUP(A35,CPU!$A$1:$N$4671,9) -> 3322.69 | H35: =VLOOKUP(A35,CPU!$A$1:$N$4671,10) -> 3821.09 | I35: =ROUND(F35*H35,2) -> 34380.26
A36: 22 | B36: 5.3 | C36: AQUISIÇÃO DE CONCRETO BETUMINOSO USINADO A QUENTE (CBUQ) PARA PAVIMENTACAO ASFALTICA, PADRAO DNIT, FAIXA C, COM CAP 50/70 - EXCLUSIVE TRANSPORTE | D36: CPU.8 | E36: T | F36: 1519.996 | G36: =VLOOKUP(A36,CPU!$A$1:$N$4671,9) -> 597.5 | H36: =VLOOKUP(A36,CPU!$A$1:$N$4671,10) -> 687.13 | I36: 1044434.85
B37: TOTAL GERAL DA OBRA COM BDI | I37: =SUM(I9,I15,I23,I28,I33) -> 3014817.24

Sheet CPU
A1: 1 | B1: CODEVASF | E1: COMPOSIÇÃO DE PREÇO UNITÁRIO | I1: =H11 -> 15927.66 | J1: =H13 -> 19328.22 | K1: BDI CALCULADO: | M1: =ORÇAMENTO!I6 -> 0.2135
B2: OBRA: | C2: =ORÇAMENTO!C5 -> PAVIMENTAÇÃO ASFÁLTICA EM CBUQ - VIAS DIVERSAS - BAIRROS N.SRA DO ROSÁRIO E CÍCERO PASSOS (PIRAPORA / MG) | G2: DATA: | H2: =ORÇAMENTO!C6 -> AGOSTO / 2023 | K2: BDI DIFERENCIADO: | M2: ='BDI FORN'!D31/100 -> 0.15
B3: SERVIÇO: | C3: =VLOOKUP(A1,ORÇAMENTO!A10:I29,3) -> MOBILIZAÇÃO E DESMOBILIZAÇÃO | E3: Referência: | F3: CPU.1 | G3: UNIDADE: | H3: =VLOOKUP(A1,ORÇAMENTO!A10:I29,5) -> GL
B5: TIPO ITEM | C5: CODIGO ITEM | D5: DESCRIÇÃO ITEM | E5: UNIDADE ITEM | F5: COEFICIENTE | G5: PRECO UNITARIO | H5: CUSTO TOTAL
B6: COMPOSICAO | C6: 89876 | D6: CAMINHÃO BASCULANTE 14 M3, COM CAVALO MECÂNICO DE CAPACIDADE MÁXIMA DE TRAÇÃO COMBINADO DE 36000 KG, POTÊNCIA 286 CV, INCLUSIVE SEMIREBOQUE COM CAÇAMBA METÁLICA | E6: CHP DIURNO. | F6: 8 | G6: 287.48 | H6: =ROUNDDOWN(F6*G6,2) -> 2299.84
B7: COMPOSICAO | C7: 89877 | D7: CAMINHÃO BASCULANTE 14 M3, COM CAVALO MECÂNICO DE CAPACIDADE MÁXIMA DE TRAÇÃO COMBINADO DE 36000 KG, POTÊNCIA 286 CV, INCLUSIVE SEMIREBOQUE TRAÇÃO | E7: CHI DIURNO. | F7: 8 | G7: 82.59 | H7: =ROUNDDOWN(F7*G7,2) -> 660.72
B8: COMPOSICAO | C8: 5914640 | D8: TRANSPORTE COM CAVALO MECÂNICO COM SEMIRREBOQUE COM CAPACIDADE DE 30 T - RODOVIA PAVIMENTADA | E8: T.KM | F8: 8223 | G8: 0.57 | H8: 4687.11
B9: COMPOSIÇÃO | C9: 88316 | D9: SERVENTE COM ENCARGOS COMPLEMENTARES | E9: H | F9: 16 | G9: 19.76 | H9: 316.16
B10: PRODUÇÃO DA EQUIPE | E10: 0.5 | F10: CUSTO | H10: =SUM(H6:H9) -> 7963.83
B11: TOTAL | H11: =H10/E10 -> 15927.66 | I11: OK
B12: BDI % | H12: =1+$M$1 -> 1.2135
B13: TOTAL DO SERVIÇO - R$ | H13: =ROUND(H11*H12,2) -> 19328.22
A15: =A1+1 -> 2 | B15: CODEVASF | E15: COMPOSIÇÃO DE PREÇO UNITÁRIO | I15: =H30 -> 125308.5 | J15: =H32 -> 152061.86
B16: OBRA: | C16: =$C$2 -> PAVIMENTAÇÃO ASFÁLTICA EM CBUQ - VIAS DIVERSAS - BAIRROS N.SRA DO ROSÁRIO E CÍCERO PASSOS (PIRAPORA / MG) | G16: DATA: | H16: =$H$2 -> AGOSTO / 2023
B17: SERVIÇO: | C17: =VLOOKUP(A15,ORÇAMENTO!$A$10:$I$29,3) -> ADMINISTRAÇÃO LOCAL | E17: SINAPI | F17: CPU.2 | G17: UNIDADE: | H17: =VLOOKUP(A15,ORÇAMENTO!$A$10:$I$29,5) -> GL
B19: TIPO ITEM | C19: CODIGO ITEM | D19: DESCRIÇÃO ITEM | E19: UNIDADE ITEM | F19: COEFICIENTE | G19: PRECO UNITARIO | H19: CUSTO TOTAL
B20: INSUMO | C20: 14250 | D20: ENERGIA ELÉTRICA | E20: kwh | F20: 60 | G20: 0.86 | H20: =ROUNDDOWN(F20*G20,2) -> 51.6
B21: INSUMO | C21: 44480 | D21: TARIFA FORNECIMENTO DE ÁGUA/ESGOTO | E21: M3 | F21: 6 | G21: 16.27 | H21: 97.62
B22: COTAÇÃO | C22: MERC. | D22: TELEFONE (PLANO CONTROLE) | E22: UNID | F22: 2 | G22: 59.99 | H22: 119.98
B23: INSUMO | C23: ED-50155 SEINFRA | D23: BANHEIRO QUÍMICO 110 X 120 X 230 CM COM MANUTENÇÃO (CONSIDERANDO OBRAS SIMULTÂNEAS) | E23: MÊS | F23: 2 | G23: 820 | H23: 1640
B24: COMPOSICAO | C24: 90777 | D24: Engenheiro Civil Júnior com encargos complementares | E24: H | F24: 55 | G24: 114.12 | H24: 6276.6
B25: COMPOSICAO | C25: 90776 | D25: Encarregado Geral com encargos complementares | E25: H | F25: 110 | G25: 57.73 | H25: 6350.3
B26: COMPOSICAO | C26: 88321 | D26: Tecnico de Laboratório com encargos complementares | E26: H | F26: 55 | G26: 45.67 | H26: 2511.85
B27: COMPOSICAO | C27: 100309 | D27: Tecnico em Segurança do Trabalho com encargos complementares | E27: H | F27: 55 | G27: 45.93 | H27: 2526.15
B28: COMPOSICAO | C28: 90772 | D28: Auxiliar de escritório com encargos complementares | E28: H | F28: 55 | G28: 23.83 | H28: 1310.65
B29: PRODUÇÃO DA EQUIPE | E29: =1/6 -> 0.1666666667 | F29: CUSTO | H29: =SUM(H20:H28) -> 20884.75
B30: TOTAL | H30: =ROUND(H29/E29,2) -> 125308.5 | I30: OK
B31: BDI % | H31: =1+$M$1 -> 1.2135
B32: TOTAL DO SERVIÇO - R$ | H32: =ROUND(H30*H31,2) -> 152061.86
A34: =A15+1 -> 3 | B34: CODEVASF | E34: COMPOSIÇÃO DE PREÇO UNITÁRIO | I34: =H46 -> 18107.4 | J34: =H48 -> 21973.33
B35: OBRA: | C35: =$C$2 -> PAVIMENTAÇÃO ASFÁLTICA EM CBUQ - VIAS DIVERSAS - BAIRROS N.SRA DO ROSÁRIO E CÍCERO PASSOS (PIRAPORA / MG) | G35: DATA: | H35: =$H$2 -> AGOSTO / 2023
B36: SERVIÇO: | C36: =VLOOKUP(A34,ORÇAMENTO!$A$10:$I$29,3) -> CANTEIRO DE OBRAS | E36: SINAPI | F36: =VLOOKUP(A34,ORÇAMENTO!$A$10:$I$29,4) -> CPU.3 | G36: UNIDADE: | H36: =VLOOKUP(A34,ORÇAMENTO!$A$10:$I$29,5) -> GL
B38: TIPO ITEM | C38: CODIGO ITEM | D38: DESCRIÇÃO ITEM | E38: UNIDADE ITEM | F38: COEFICIENTE | G38: PRECO UNITARIO | H38: CUSTO TOTAL
B39: INSUMO | C39: 10775 | D39: LOCACAO DE CONTAINER COM 1 SANITARIO, PARA ESCRITORIO,COMPLETO, SEM DIVISORIAS INTERNAS | E39: MÊS | F39: 6 | G39: 1040 | H39: =ROUNDDOWN(F39*G39,2) -> 6240
B40: INSUMO | C40: 10779 | D40: LOCACAO DE CONTAINER P/ SANITARIO, C/ 5 BACIAS, 1 LAVATORIO E 4 MICTORIOS | E40: MÊS | F40: 6 | G40: 1300 | H40: 7800
B41: COMPOSIÇÃO | C41: 100382 | D41: FABRICAÇÃO E INSTALAÇÃO DE PONTALETES DE MADEIRA NÃO APARELHADA PARA TELHADOS COM TELHA ONDULADA DE FIBROCIMENTO | E41: M2 | F41: 48 | G41: 34.39 | H41: 1650.72
B42: COMPOSIÇÃO | C42: 94207 | D42: TELHAMENTO COM TELHA ONDULADA DE FIBROCIMENTO E = 6 MM | E42: M2 | F42: 48 | G42: 42.66 | H42: 2047.68
B43: INSUMO | C43: 37525 | D43: TELA PLASTICA TECIDA LISTRADA BRANCA E LARANJA, TIPO GUARDA CORPO, EM POLIETILENO MONOFILADO, ROLO 1,20 X 50 M (L X C) | E43: M | F43: 100 | G43: 3.69 | H43: 369
H44: 0
B45: PRODUÇÃO DA EQUIPE | E45: 1 | F45: CUSTO | H45: =SUM(H39:H44) -> 18107.4
B46: TOTAL | H46: =H45/E45 -> 18107.4 | I46: OK
B47: BDI % | H47: =1+$M$1 -> 1.2135
B48: TOTAL DO SERVIÇO - R$ | H48: =ROUND(H46*H47,2) -> 21973.33
A50: =A34+1 -> 4 | B50: CODEVASF | E50: COMPOSIÇÃO DE PREÇO UNITÁRIO | I50: =H64 -> 340.98 | J50: =H66 -> 413.78
B51: OBRA: | C51: =$C$2 -> PAVIMENTAÇÃO ASFÁLTICA EM CBUQ - VIAS DIVERSAS - BAIRROS N.SRA DO ROSÁRIO E CÍCERO PASSOS (PIRAPORA / MG) | G51: DATA: | H51: =$H$2 -> AGOSTO / 2023
B52: SERVIÇO: | C52: =VLOOKUP(A50,ORÇAMENTO!$A$10:$I$29,3) -> PLACA DE OBRA EM CHAPA DE AÇO GALVANIZADO | E52: SINAPI | F52: =VLOOKUP(A50,ORÇAMENTO!$A$10:$I$29,4) -> 103689 | G52: UNIDADE: | H52: =VLOOKUP(A50,ORÇAMENTO!$A$10:$I$29,5) -> M2
B54: TIPO ITEM | C54: CODIGO ITEM | D54: DESCRIÇÃO ITEM | E54: UNIDADE ITEM | F54: COEFICIENTE | G54: PRECO UNITARIO | H54: CUSTO TOTAL
B55: INSUMO | C55: 4509 | D55: SARRAFO *2,5 X 10* CM EM PINUS, MISTA OU EQUIVALENTE DA REGIAO - BRUTA | E55: M | F55: 3,2083000 | G55: 4,39 | H55: =ROUNDDOWN(F55*G55,2) -> 14.08
B56: INSUMO | C56: 4813 | D56: PLACA DE OBRA (PARA CONSTRUCAO CIVIL) EM CHAPA GALVANIZADA *N. 22*, ADESIVADA, DE *2,4 X 1,2* M (SEM POSTES PARA FIXACAO) | E56: M2 | F56: 1,0000000 | G56: 250,00 | H56: 250
B57: INSUMO | C57: 5065 | D57: PREGO DE ACO POLIDO COM CABECA 10 X 10 | E57: KG | F57: 0,0113000 | G57: 38,80 | H57: 0.43
B58: INSUMO | C58: 5069 | D58: PREGO DE ACO POLIDO COM CABECA 17 X 27 | E58: KG | F58: 0,0132000 | G58: 20,79 | H58: 0.27
B59: COMPOSICAO | C59: 88262 | D59: CARPINTEIRO DE FORMAS COM ENCARGOS COMPLEMENTARES | E59: H | F59: 0,3729000 | G59: 27,05 | H59: 10.08
B60: COMPOSICAO | C60: 88316 | D60: SERVENTE COM ENCARGOS COMPLEMENTARES | E60: H | F60: 1,1186000 | G60: 19,76 | H60: 22.1
B61: COMPOSICAO | C61: 4115 | D61: MADEIRA ROLICA TRATADA, D = 12 A 15 CM, H = 3,00 M, EM EUCALIPTO OU EQUIVALENTE | E61: M | F61: 2 | G61: 22.01 | H61: 44.02
H62: 0
B63: PRODUÇÃO DA EQUIPE | E63: 1 | F63: CUSTO | H63: =SUM(H55:H62) -> 340.98
B64: TOTAL | H64: =H63/E63 -> 340.98 | I64: OK
B65: BDI % | H65: =1+$M$1 -> 1.2135
B66: TOTAL DO SERVIÇO - R$ | H66: =ROUND(H64*H65,2) -> 413.78
A68: =A50+1 -> 5 | B68: CODEVASF | E68: COMPOSIÇÃO DE PREÇO UNITÁRIO | I68: =H76 -> 0.66 | J68: =H78 -> 0.8
B69: OBRA: | C69: =$C$2 -> PAVIMENTAÇÃO ASFÁLTICA EM CBUQ - VIAS DIVERSAS - BAIRROS N.SRA DO ROSÁRIO E CÍCERO PASSOS (PIRAPORA / MG) | G69: DATA: | H69: =$H$2 -> AGOSTO / 2023
B70: SERVIÇO: | C70: =VLOOKUP(A68,ORÇAMENTO!$A$10:$I$29,3) -> LOCAÇÃO DE PAVIMENTAÇÃO | E70: SINAPI | F70: =VLOOKUP(A68,ORÇAMENTO!$A$10:$I$29,4) -> 99064 | G70: UNIDADE: | H70: =VLOOKUP(A68,ORÇAMENTO!$A$10:$I$29,5) -> M
B72: TIPO ITEM | C72: CODIGO ITEM | D72: DESCRIÇÃO ITEM | E72: UNIDADE ITEM | F72: COEFICIENTE | G72: PRECO UNITARIO | H72: CUSTO TOTAL
B73: COMPOSICAO | C73: 99058 | D73: LOCAÇÃO DE PONTO PARA REFERÊNCIA TOPOGRÁFICA | E73: UN | F73: 0,0500000 | G73: 13.37 | H73: =ROUNDDOWN(F73*G73,2) -> 0.66
H74: =ROUNDDOWN(F74*G74,2) -> 0
B75: PRODUÇÃO DA EQUIPE | E75: 1 | F75: CUSTO | H75: =SUM(H73:H74) -> 0.66
B76: TOTAL | H76: =H75/E75 -> 0.66 | I76: OK
B77: BDI % | H77: =1+$M$1 -> 1.2135
B78: TOTAL DO SERVIÇO - R$ | H78: =ROUND(H76*H77,2) -> 0.8
A80: =A68+1 -> 6 | B80: CODEVASF | E80: COMPOSIÇÃO DE PREÇO UNITÁRIO | I80: =H89 -> 1.87 | J80: =H91 -> 2.27
B81: OBRA: | C81: =$C$2 -> PAVIMENTAÇÃO ASFÁLTICA EM CBUQ - VIAS DIVERSAS - BAIRROS N.SRA DO ROSÁRIO E CÍCERO PASSOS (PIRAPORA / MG) | G81: DATA: | H81: =$H$2 -> AGOSTO / 2023
B82: SERVIÇO: | C82: =VLOOKUP(A80,ORÇAMENTO!$A$10:$I$29,3) -> ESCAVAÇÃO HORIZONTAL EM SOLO DE 1A CATEGORIA | E82: SINAPI | F82: =VLOOKUP(A80,ORÇAMENTO!$A$10:$I$29,4) -> 101116 | G82: UNIDADE: | H82: =VLOOKUP(A80,ORÇAMENTO!$A$10:$I$29,5) -> M3
B84: TIPO ITEM | C84: CODIGO ITEM | D84: DESCRIÇÃO ITEM | E84: UNIDADE ITEM | F84: COEFICIENTE | G84: PRECO UNITARIO | H84: CUSTO TOTAL
B85: COMPOSICAO | C85: 5847 | D85: TRATOR DE ESTEIRAS, POTÊNCIA 170 HP, PESO OPERACIONAL 19 T, CAÇAMBA 5,2 M3 | E85: CHP | F85: 0,0048000 | G85: 217,11 | H85: =ROUNDDOWN(F85*G85,2) -> 1.04
B86: COMPOSICAO | C86: 5849 | D86: TRATOR DE ESTEIRAS, POTÊNCIA 170 HP, PESO OPERACIONAL 19 T, CAÇAMBA 5,2 M3 | E86: CHI | F86: 0,0082000 | G86: 71,35 | H86: 0.58
B87: COMPOSICAO | C87: 88316 | D87: SERVENTE COM ENCARGOS COMPLEMENTARES | E87: H | F87: 0,0131000 | G87: 19,76 | H87: 0.25
B88: PRODUÇÃO DA EQUIPE | E88: 1 | F88: CUSTO | H88: =SUM(H85:H87) -> 1.87
B89: TOTAL | H89: =H88/E88 -> 1.87 | I89: OK
B90: BDI % | H90: =1+$M$1 -> 1.2135
B91: TOTAL DO SERVIÇO - R$ | H91: =ROUND(H89*H90,2) -> 2.27
A93: 7 | B93: CODEVASF | E93: COMPOSIÇÃO DE PREÇO UNITÁRIO | I93: =H103 -> 6.49 | J93: =H105 -> 7.88
B94: OBRA: | C94: =$C$2 -> PAVIMENTAÇÃO ASFÁLTICA EM CBUQ - VIAS DIVERSAS - BAIRROS N.SRA DO ROSÁRIO E CÍCERO PASSOS (PIRAPORA / MG) | G94: DATA: | H94: =$H$2 -> AGOSTO / 2023
B95: SERVIÇO: | C95: =VLOOKUP(A93,ORÇAMENTO!$A$10:$I$29,3) -> CARGA, MANOBRA E DESCARGA DE SOLOS E MATERIAIS GRANULARES EM CAMINHÃO BASCULANTE | E95: SINAPI | F95: =VLOOKUP(A93,ORÇAMENTO!$A$10:$I$29,4) -> 100976 | G95: UNIDADE: | H95: =VLOOKUP(A93,ORÇAMENTO!$A$10:$I$29,5) -> M3
B97: TIPO ITEM | C97: CODIGO ITEM | D97: DESCRIÇÃO ITEM | E97: UNIDADE ITEM | F97: COEFICIENTE | G97: PRECO UNITARIO | H97: CUSTO TOTAL
B98: COMPOSICAO | C98: 5940 | D98: PÁ CARREGADEIRA SOBRE RODAS, POTÊNCIA LÍQUIDA 128 HP, CAPACIDADE DA CAÇAMBA 1,7 A 2,8 M3, PESO OPERACIONAL 11632 KG | E98: CHP | F98: 0,0083000 | G98: 203,10 | H98: =ROUNDDOWN(F98*G98,2) -> 1.68
B99: COMPOSICAO | C99: 5942 | D99: PÁ CARREGADEIRA SOBRE RODAS, POTÊNCIA LÍQUIDA 128 HP, CAPACIDADE DA CAÇAMBA 1,7 A 2,8 M3, PESO OPERACIONAL 11632 KG | E99: CHI | F99: 0,0074000 | G99: 83,73 | H99: 0.61
B100: COMPOSICAO | C100: 89883 | D100: CAMINHÃO BASCULANTE 18 M3, COM CAVALO MECÂNICO DE CAPACIDADE MÁXIMA DE TRAÇÃO COMBINADO DE 45000 KG, POTÊNCIA 330 CV, INCLUSIVE SEMIREBOQUE COM CAÇAMBA METÁLICA | E100: CHP | F100: 0.010753 | G100: 316,09 | H100: 3.39
B101: COMPOSICAO | C101: 89884 | D101: CAMINHÃO BASCULANTE 18 M3, COM CAVALO MECÂNICO DE CAPACIDADE MÁXIMA DE TRAÇÃO COMBINADO DE 45000 KG, POTÊNCIA 330 CV, INCLUSIVE SEMIREBOQUE COM CAÇAMBA METÁLICA | E101: CHI | F101: 0,0095000 | G101: 86,09 | H101: 0.81
B102: PRODUÇÃO DA EQUIPE | E102: 1 | F102: CUSTO | H102: =SUM(H98:H101) -> 6.49
B103: TOTAL | H103: =H102/E102 -> 6.49 | I103: OK
B104: BDI % | H104: =1+$M$1 -> 1.2135
B105: TOTAL DO SERVIÇO - R$ | H105: =ROUND(H103*H104,2) -> 7.88
A107: 8 | B107: CODEVASF | E107: COMPOSIÇÃO DE PREÇO UNITÁRIO | I107: =H121 -> 1.08 | J107: =H123 -> 1.31
B108: OBRA: | C108: =$C$2 -> PAVIMENTAÇÃO ASFÁLTICA EM CBUQ - VIAS DIVERSAS - BAIRROS N.SRA DO ROSÁRIO E CÍCERO PASSOS (PIRAPORA / MG) | G108: DATA: | H108: =$H$2 -> AGOSTO / 2023
B109: SERVIÇO: | C109: =VLOOKUP(A107,ORÇAMENTO!$A$10:$I$29,3) -> REGULARIZAÇÃO E COMPACTAÇÃO DO SUBLEITO | E109: SICRO | F109: =VLOOKUP(A107,ORÇAMENTO!$A$10:$I$29,4) -> 100577 | G109: UNIDADE: | H109: M2
B111: TIPO ITEM | C111: CODIGO ITEM | D111: DESCRIÇÃO ITEM | E111: UNIDADE ITEM | F111: COEFICIENTE | G111: PRECO UNITARIO | H111: CUSTO TOTAL
B112: COMPOSICAO | C112: 5901 | D112: CAMINHÃO PIPA 10.000 L TRUCADO, PESO BRUTO TOTAL 23.000 KG, CARGA ÚTIL MÁXIMA 15.935 KG, DISTÂNCIA ENTRE EIXOS 4,8 M, POTÊNCIA 230 CV, INCLUSIVE TANQUE DE AÇO PARA TRANSPORTE DE ÁGUA | E112: CHP | F112: 0,0010000 | G112: 267,67 | H112: =ROUNDDOWN(F112*G112,2) -> 0.26
B113: COMPOSICAO | C113: 5903 | D113: CAMINHÃO PIPA 10.000 L TRUCADO, PESO BRUTO TOTAL 23.000 KG, CARGA ÚTIL MÁXIMA 15.935 KG, DISTÂNCIA ENTRE EIXOS 4,8 M, POTÊNCIA 230 CV, INCLUSIVE TANQUE DE AÇO PARA TRANSPORTE DE ÁGUA | E113: CHI | F113: 0,0020000 | G113: 67,79 | H113: =ROUNDDOWN(F113*G113,2) -> 0.13
B114: COMPOSICAO | C114: 5932 | D114: MOTONIVELADORA POTÊNCIA BÁSICA LÍQUIDA (PRIMEIRA MARCHA) 125 HP, PESO BRUTO 13032 KG, LARGURA DA LÂMINA DE 3,7 M | E114: CHP | F114: 0,0001000 | G114: 236,38 | H114: 0.02
B115: COMPOSICAO | C115: 5934 | D115: MOTONIVELADORA POTÊNCIA BÁSICA LÍQUIDA (PRIMEIRA MARCHA) 125 HP, PESO BRUTO 13032 KG, LARGURA DA LÂMINA DE 3,7 M | E115: CHI | F115: 0,0030000 | G115: 92,27 | H115: 0.27
B116: COMPOSICAO | C116: 88316 | D116: SERVENTE COM ENCARGOS COMPLEMENTARES | E116: H | F116: 0,0030000 | G116: 19,76 | H116: 0.05
B117: COMPOSICAO | C117: 96463 | D117: ROLO COMPACTADOR DE PNEUS, ESTATICO, PRESSAO VARIAVEL, POTENCIA 110 HP, PESO SEM/COM LASTRO 10,8/27 T, LARGURA DE ROLAGEM 2,30 M | E117: CHP | F117: 0,0010000 | G117: 197,38 | H117: 0.19
B118: COMPOSICAO | C118: 96464 | D118: ROLO COMPACTADOR DE PNEUS, ESTATICO, PRESSAO VARIAVEL, POTENCIA 110 HP, PESO SEM/COM LASTRO 10,8/27 T, LARGURA DE ROLAGEM 2,30 M | E118: CHI | F118: 0,0020000 | G118: 82,85 | H118: 0.16
B120: PRODUÇÃO DA EQUIPE | E120: 1 | F120: CUSTO | H120: =SUM(H112:H119) -> 1.08
B121: TOTAL | H121: =H120/E120 -> 1.08 | I121: OK
B122: BDI % | H122: =1+$M$1 -> 1.2135
B123: TOTAL DO SERVIÇO - R$ | H123: =ROUND(H121*H122,2) -> 1.31
A125: 9 | B125: CODEVASF | E125: COMPOSIÇÃO DE PREÇO UNITÁRIO | I125: =H146 -> 96.6 | J125: =H148 -> 117.22
B126: OBRA: | C126: =$C$2 -> PAVIMENTAÇÃO ASFÁLTICA EM CBUQ - VIAS DIVERSAS - BAIRROS N.SRA DO ROSÁRIO E CÍCERO PASSOS (PIRAPORA / MG) | G126: DATA: | H126: =$H$2 -> AGOSTO / 2023
B127: SERVIÇO: | C127: =VLOOKUP(A125,ORÇAMENTO!$A$10:$I$29,3) -> EXECUÇÃO E COMPACTAÇÃO DE BASE E OU SUB-BASE PARA PAVIMENTAÇÃO DE SOLO BRITA - 50/50 - EXCLUSIVE SOLO, ESCAVAÇÃO, CARGA E TRANSPORTE | E127: SINAPI | F127: =VLOOKUP(A125,ORÇAMENTO!$A$10:$I$29,4) -> 100565 | G127: UNIDADE: | H127: =VLOOKUP(A125,ORÇAMENTO!$A$10:$I$29,5) -> M3
B129: TIPO ITEM | C129: CODIGO ITEM | D129: DESCRIÇÃO ITEM | E129: UNIDADE ITEM | F129: COEFICIENTE | G129: PRECO UNITARIO | H129: CUSTO TOTAL
B130: INSUMO | C130: 4721 | D130: PEDRA BRITADA N. 1 (9,5 a 19 MM) POSTO PEDREIRA/FORNECEDOR, SEM FRETE | E130: M3 | F130: 0,6880000 | G130: 109,42 | H130: =ROUNDDOWN(F130*G130,2) -> 75.28
B131: COMPOSICAO | C131: 5684 | D131: ROLO COMPACTADOR VIBRATÓRIO DE UM CILINDRO AÇO LISO, POTÊNCIA 80 HP, PESO OPERACIONAL MÁXIMO 8,1 T, IMPACTO DINÂMICO 16,15 / 9,5 T, LARGURA DE TRABALHO 1,68 M | E131: CHP | F131: 0,0120000 | G131: 142,77 | H131: 1.71
B132: COMPOSICAO | C132: 5685 | D132: ROLO COMPACTADOR VIBRATÓRIO DE UM CILINDRO AÇO LISO, POTÊNCIA 80 HP, PESO OPERACIONAL MÁXIMO 8,1 T, IMPACTO DINÂMICO 16,15 / 9,5 T, LARGURA DE TRABALHO 1,68 M | E132: CHI | F132: 0,0280000 | G132: 59,30 | H132: 1.66
B133: COMPOSICAO | C133: 5901 | D133: CAMINHÃO PIPA 10.000 L TRUCADO, PESO BRUTO TOTAL 23.000 KG, CARGA ÚTIL MÁXIMA 15.935 KG, DISTÂNCIA ENTRE EIXOS 4,8 M, POTÊNCIA 230 CV, INCLUSIVE TANQUE DE AÇO PARA TRANSPORTE DE ÁGUA | E133: CHP | F133: 0,0040000 | G133: 267,67 | H133: 1.07
B134: COMPOSICAO | C134: 5903 | D134: CAMINHÃO PIPA 10.000 L TRUCADO, PESO BRUTO TOTAL 23.000 KG, CARGA ÚTIL MÁXIMA 15.935 KG, DISTÂNCIA ENTRE EIXOS 4,8 M, POTÊNCIA 230 CV, INCLUSIVE TANQUE DE AÇO PARA TRANSPORTE DE ÁGUA | E134: CHI | F134: 0,0360000 | G134: 67,79 | H134: 2.44
B135: COMPOSICAO | C135: 5921 | D135: GRADE DE DISCO REBOCÁVEL COM 20 DISCOS 24" X 6 MM COM PNEUS PARA TRANSPORTE | E135: CHP | F135: 0,0080000 | G135: 5,28 | H135: 0.04
B136: COMPOSICAO | C136: 5923 | D136: GRADE DE DISCO REBOCÁVEL COM 20 DISCOS 24" X 6 MM COM PNEUS PARA TRANSPORTE | E136: CHI | F136: 0,0320000 | G136: 3,28 | H136: 0.1
B137: COMPOSICAO | C137: 5932 | D137: MOTONIVELADORA POTÊNCIA BÁSICA LÍQUIDA (PRIMEIRA MARCHA) 125 HP, PESO BRUTO 13032 KG, LARGURA DA LÂMINA DE 3,7 M | E137: CHP | F137: 0,0080000 | G137: 236,38 | H137: 1.89
B138: COMPOSICAO | C138: 5934 | D138: MOTONIVELADORA POTÊNCIA BÁSICA LÍQUIDA (PRIMEIRA MARCHA) 125 HP, PESO BRUTO 13032 KG, LARGURA DA LÂMINA DE 3,7 M | E138: CHI | F138: 0,0320000 | G138: 92,27 | H138: 2.95
B139: COMPOSICAO | C139: 88316 | D139: SERVENTE COM ENCARGOS COMPLEMENTARES | E139: H | F139: 0,1600000 | G139: 19,76 | H139: 3.16
B140: COMPOSICAO | C140: 89035 | D140: TRATOR DE PNEUS, POTÊNCIA 85 CV, TRAÇÃO 4X4, PESO COM LASTRO DE 4.675 KG | E140: CHP | F140: 0,0080000 | G140: 117,41 | H140: 0.93
B141: COMPOSICAO | C141: 89036 | D141: TRATOR DE PNEUS, POTÊNCIA 85 CV, TRAÇÃO 4X4, PESO COM LASTRO DE 4.675 KG | E141: CHI | F141: 0,0320000 | G141: 46,92 | H141: 1.5
B142: COMPOSICAO | C142: 96463 | D142: ROLO COMPACTADOR DE PNEUS, ESTATICO, PRESSAO VARIAVEL, POTENCIA 110 HP, PESO SEM/COM LASTRO 10,8/27 T, LARGURA DE ROLAGEM 2,30 M | E142: CHP | F142: 0,0050000 | G142: 197,38 | H142: 0.98
B143: COMPOSICAO | C143: 96464 | D143: ROLO COMPACTADOR DE PNEUS, ESTATICO, PRESSAO VARIAVEL, POTENCIA 110 HP, PESO SEM/COM LASTRO 10,8/27 T, LARGURA DE ROLAGEM 2,30 M | E143: CHI | F143: 0,0350000 | G143: 82,85 | H143: 2.89
H144: 0
B145: PRODUÇÃO DA EQUIPE | E145: 1 | F145: CUSTO | H145: =SUM(H130:H144) -> 96.6
B146: TOTAL | H146: =H145/E145 -> 96.6 | I146: OK
B147: BDI % | H147: =1+$M$1 -> 1.2135
B148: TOTAL DO SERVIÇO - R$ | H148: =ROUND(H146*H147,2) -> 117.22
A150: 10 | B150: CODEVASF | E150: COMPOSIÇÃO DE PREÇO UNITÁRIO | I150: =H165 -> 1.11 | J150: =H167 -> 1.35
B151: OBRA: | C151: =$C$2 -> PAVIMENTAÇÃO ASFÁLTICA EM CBUQ - VIAS DIVERSAS - BAIRROS N.SRA DO ROSÁRIO E CÍCERO PASSOS (PIRAPORA / MG) | G151: DATA: | H151: =$H$2 -> AGOSTO / 2023
B152: SERVIÇO: | C152: =VLOOKUP(A150,ORÇAMENTO!$A$10:$I$29,3) -> IMPRIMAÇÃO COM EMULSÃO ASFÁLTICA (EAI) | E152: SINAPI | F152: =VLOOKUP(A150,ORÇAMENTO!$A$10:$I$29,4) -> 96401 | G152: UNIDADE: | H152: =VLOOKUP(A150,ORÇAMENTO!$A$10:$I$29,5) -> M2
B154: TIPO ITEM | C154: CODIGO ITEM | D154: DESCRIÇÃO ITEM | E154: UNIDADE ITEM | F154: COEFICIENTE | G154: PRECO UNITARIO | H154: CUSTO TOTAL
B155: COMPOSICAO | C155: 5839 | D155: VASSOURA MECÂNICA REBOCÁVEL COM ESCOVA CILÍNDRICA, LARGURA ÚTIL DE VARRIMENTO DE 2,44 M | E155: CHP | F155: 0,0020000 | G155: 10.13 | H155: =ROUNDDOWN(F155*G155,2) -> 0.02
B156: COMPOSICAO | C156: 5841 | D156: VASSOURA MECÂNICA REBOCÁVEL COM ESCOVA CILÍNDRICA, LARGURA ÚTIL DE VARRIMENTO DE 2,44 M | E156: CHI | F156: 0,0040000 | G156: 4.82 | H156: 0.01
B157: INSUMO | C157: ANP | D157: EMULSÃO ASFÁLTICA PARA IMPRIMAÇÃO (FORNECIMENTO COM BDI DIFERENCIADO) | E157: T | F157: =1.3/1000 -> 0.0013 | H157: 0
B158: COMPOSICAO | C158: 83362 | D158: ESPARGIDOR DE ASFALTO PRESSURIZADO, TANQUE 6 M3 COM ISOLAÇÃO TÉRMICA, AQUECIDO COM 2 MAÇARICOS, COM BARRA ESPARGIDORA 3,60 M, MONTADO SOBRE CAMINHÃO TOCO, PBT 14.300 KG, POTÊNCIA 185 CV | E158: CHP | F158: 0,0010000 | G158: 234.41 | H158: 0.23
B159: COMPOSICAO | C159: 88316 | D159: SERVENTE COM ENCARGOS COMPLEMENTARES | E159: H | F159: 0,0060000 | G159: 19.76 | H159: 0.11
B160: COMPOSICAO | C160: 89035 | D160: TRATOR DE PNEUS, POTÊNCIA 85 CV, TRAÇÃO 4X4, PESO COM LASTRO DE 4.675 KG | E160: CHP | F160: 0,0020000 | G160: 117.41 | H160: 0.23
B161: COMPOSICAO | C161: 89036 | D161: TRATOR DE PNEUS, POTÊNCIA 85 CV, TRAÇÃO 4X4, PESO COM LASTRO DE 4.675 KG | E161: CHI | F161: 0,0040000 | G161: 46.92 | H161: 0.18
B162: COMPOSICAO | C162: 91486 | D162: ESPARGIDOR DE ASFALTO PRESSURIZADO, TANQUE 6 M3 COM ISOLAÇÃO TÉRMICA, AQUECIDO COM 2 MAÇARICOS, COM BARRA ESPARGIDORA 3,60 M, MONTADO SOBRE CAMINHÃO TOCO, PBT 14.300 KG, POTÊNCIA 185 CV | E162: CHI | F162: 0,0050000 | G162: 66.12 | H162: 0.33
H163: 0
B164: PRODUÇÃO DA EQUIPE | E164: 1 | F164: CUSTO | H164: =SUM(H155:H163) -> 1.11
B165: TOTAL | H165: =H164/E164 -> 1.11 | I165: OK
B166: BDI % | H166: =1+$M$1 -> 1.2135
B167: TOTAL DO SERVIÇO - R$ | H167: =ROUND(H165*H166,2) -> 1.35
A169: 11 | B169: CODEVASF | E169: COMPOSIÇÃO DE PREÇO UNITÁRIO | I169: =H184 -> 0.91 | J169: =H186 -> 1.1
B170: OBRA: | C170: =$C$2 -> PAVIMENTAÇÃO ASFÁLTICA EM CBUQ - VIAS DIVERSAS - BAIRROS N.SRA DO ROSÁRIO E CÍCERO PASSOS (PIRAPORA / MG) | G170: DATA: | H170: =$H$2 -> AGOSTO / 2023
B171: SERVIÇO: | C171: =VLOOKUP(A169,ORÇAMENTO!$A$10:$I$29,3) -> PINTURA DE LIGAÇÃO COM EMULSÃO ASFÁLTICA RR-2C | E171: SINAPI | F171: =VLOOKUP(A169,ORÇAMENTO!$A$10:$I$29,4) -> 96402 | G171: UNIDADE: | H171: M2
B173: TIPO ITEM | C173: CODIGO ITEM | D173: DESCRIÇÃO ITEM | E173: UNIDADE ITEM | F173: COEFICIENTE | G173: PRECO UNITARIO | H173: CUSTO TOTAL
B174: COMPOSICAO | C174: 5839 | D174: VASSOURA MECÂNICA REBOCÁVEL COM ESCOVA CILÍNDRICA, LARGURA ÚTIL DE VARRIMENTO DE 2,44 M | E174: CHP | F174: 0,0020000 | G174: 10.13 | H174: =ROUNDDOWN(F174*G174,2) -> 0.02
B175: COMPOSICAO | C175: 5841 | D175: VASSOURA MECÂNICA REBOCÁVEL COM ESCOVA CILÍNDRICA, LARGURA ÚTIL DE VARRIMENTO DE 2,44 M | E175: CHI | F175: 0,0040000 | G175: 4.82 | H175: 0.01
B176: INSUMO | C176: ANP | D176: EMULSAO ASFALTICA CATIONICA RR-2C PARA USO EM PAVIMENTACAO ASFALTICA (COLETADO CAIXA NA ANP ACRESCIDO DE ICMS) | E176: KG | F176: 0,4500000 | H176: 0
B177: COMPOSICAO | C177: 83362 | D177: ESPARGIDOR DE ASFALTO PRESSURIZADO, TANQUE 6 M3 COM ISOLAÇÃO TÉRMICA, AQUECIDO COM 2 MAÇARICOS, COM BARRA ESPARGIDORA 3,60 M, MONTADO SOBRE CAMINHÃO TOCO, PBT 14.300 KG, POTÊNCIA 185 CV | E177: CHP | F177: 0,0004000 | G177: 234.41 | H177: 0.09
B178: COMPOSICAO | C178: 88316 | D178: SERVENTE COM ENCARGOS COMPLEMENTARES | E178: H | F178: 0,0055000 | G178: 19.76 | H178: 0.1
B179: COMPOSICAO | C179: 89035 | D179: TRATOR DE PNEUS, POTÊNCIA 85 CV, TRAÇÃO 4X4, PESO COM LASTRO DE 4.675 KG | E179: CHP | F179: 0,0017000 | G179: 117.41 | H179: 0.19
B180: COMPOSICAO | C180: 89036 | D180: TRATOR DE PNEUS, POTÊNCIA 85 CV, TRAÇÃO 4X4, PESO COM LASTRO DE 4.675 KG | E180: CHI | F180: 0,0038000 | G180: 46.92 | H180: 0.17
B181: COMPOSICAO | C181: 91486 | D181: ESPARGIDOR DE ASFALTO PRESSURIZADO, TANQUE 6 M3 COM ISOLAÇÃO TÉRMICA, AQUECIDO COM 2 MAÇARICOS, COM BARRA ESPARGIDORA 3,60 M, MONTADO SOBRE CAMINHÃO TOCO, PBT 14.300 KG, POTÊNCIA 185 CV | E181: CHI | F181: 0,0051000 | G181: 66.12 | H181: 0.33
H182: 0
B183: PRODUÇÃO DA EQUIPE | E183: 1 | F183: CUSTO | H183: =SUM(H174:H182) -> 0.91
B184: TOTAL | H184: =H183/E183 -> 0.91 | I184: OK
B185: BDI % | H185: =1+$M$1 -> 1.2135
B186: TOTAL DO SERVIÇO - R$ | H186: =ROUND(H184*H185,2) -> 1.1
A188: 12 | B188: CODEVASF | E188: COMPOSIÇÃO DE PREÇO UNITÁRIO | I188: =H206 -> 111.82 | J188: =H208 -> 135.69
B189: OBRA: | C189: =$C$2 -> PAVIMENTAÇÃO ASFÁLTICA EM CBUQ - VIAS DIVERSAS - BAIRROS N.SRA DO ROSÁRIO E CÍCERO PASSOS (PIRAPORA / MG) | G189: DATA: | H189: =$H$2 -> AGOSTO / 2023
B190: SERVIÇO: | C190: =VLOOKUP(A188,ORÇAMENTO!$A$10:$I$29,3) -> EXECUÇÃO DE PAVIMENTO COM APLICAÇÃO DE CONCRETO ASFÁLTICO USINADO A QUENTE (CBUQ), CAMADA DE ROLAMENTO - EXCLUSIVE TRANSPORTE | E190: SINAPI | F190: =VLOOKUP(A188,ORÇAMENTO!$A$10:$I$29,4) -> 95995 | G190: UNIDADE: | H190: =VLOOKUP(A188,ORÇAMENTO!$A$10:$I$29,5) -> M3
B192: TIPO ITEM | C192: CODIGO ITEM | D192: DESCRIÇÃO ITEM | E192: UNIDADE ITEM | F192: COEFICIENTE | G192: PRECO UNITARIO | H192: CUSTO TOTAL
B193: INSUMO | C193: COTAÇÃO | D193: CONCRETO BETUMINOSO USINADO A QUENTE (CBUQ) PARA PAVIMENTACAO ASFALTICA, PADRAO DNIT, FAIXA C, COM CAP 50/70 - AQUISICAO POSTO USINA (FORNECIMENTO COM BDI DIFERENCIADO) | E193: T | F193: 2,5548000 | H193: =ROUNDDOWN(F193*G193,2) -> 0 | K193: 602.5
B194: COMPOSICAO | C194: 5835 | D194: VIBROACABADORA DE ASFALTO SOBRE ESTEIRAS, LARGURA DE PAVIMENTAÇÃO 1,90 M A 5,30 M, POTÊNCIA 105 HP CAPACIDADE 450 T/H | E194: CHP | F194: 0,0464000 | G194: 357,51 | H194: 16.58
B195: COMPOSICAO | C195: 5837 | D195: VIBROACABADORA DE ASFALTO SOBRE ESTEIRAS, LARGURA DE PAVIMENTAÇÃO 1,90 M A 5,30 M, POTÊNCIA 105 HP CAPACIDADE 450 T/H | E195: CHI | F195: 0,0949000 | G195: 139,09 | H195: 13.19
B196: COMPOSICAO | C196: 88314 | D196: RASTELEIRO COM ENCARGOS COMPLEMENTARES | E196: H | F196: 1,1301000 | G196: 21,21 | H196: 23.96
B197: COMPOSICAO | C197: 91386 | D197: CAMINHÃO BASCULANTE 10 M3, TRUCADO CABINE SIMPLES, PESO BRUTO TOTAL 23.000 KG, CARGA ÚTIL MÁXIMA 15.935 KG, DISTÂNCIA ENTRE EIXOS 4,80 M, POTÊNCIA 230 CV INCLUSIVE CAÇAMBA METÁLICA | E197: CHP | F197: 0,0464000 | G197: 229,56 | H197: 10.65
B198: COMPOSICAO | C198: 95631 | D198: ROLO COMPACTADOR VIBRATORIO TANDEM, ACO LISO, POTENCIA 125 HP, PESO SEM/COM LASTRO 10,20/11,65 T, LARGURA DE TRABALHO 1,73 M | E198: CHP | F198: 0,0805000 | G198: 204,82 | H198: 16.48
B199: COMPOSICAO | C199: 95632 | D199: ROLO COMPACTADOR VIBRATORIO TANDEM, ACO LISO, POTENCIA 125 HP, PESO SEM/COM LASTRO 10,20/11,65 T, LARGURA DE TRABALHO 1,73 M | E199: CHI | F199: 0,0607000 | G199: 77,02 | H199: 4.67
B200: COMPOSICAO | C200: 96155 | D200: TRATOR DE PNEUS COM POTÊNCIA DE 85 CV, TRAÇÃO 4X4, COM VASSOURA MECÂNICA ACOPLADA | E200: CHI | F200: 0,1071000 | G200: 51,52 | H200: 5.51
B201: COMPOSICAO | C201: 96157 | D201: TRATOR DE PNEUS COM POTÊNCIA DE 85 CV, TRAÇÃO 4X4, COM VASSOURA MECÂNICA ACOPLADA | E201: CHP | F201: 0,0341000 | G201: 126,43 | H201: 4.31
B202: COMPOSICAO | C202: 96463 | D202: ROLO COMPACTADOR DE PNEUS, ESTATICO, PRESSAO VARIAVEL, POTENCIA 110 HP, PESO SEM/COM LASTRO 10,8/27 T, LARGURA DE ROLAGEM 2,30 M | E202: CHP | F202: 0,0419000 | G202: 197,38 | H202: 8.27
B203: COMPOSICAO | C203: 96464 | D203: ROLO COMPACTADOR DE PNEUS, ESTATICO, PRESSAO VARIAVEL, POTENCIA 110 HP, PESO SEM/COM LASTRO 10,8/27 T, LARGURA DE ROLAGEM 2,30 M | E203: CHI | F203: 0,0990000 | G203: 82,85 | H203: 8.2
H204: 0
B205: PRODUÇÃO DA EQUIPE | E205: 1 | F205: CUSTO | H205: =SUM(H193:H204) -> 111.82
B206: TOTAL | H206: =H205/E205 -> 111.82 | I206: OK
B207: BDI % | H207: =1+$M$1 -> 1.2135
B208: TOTAL DO SERVIÇO - R$ | H208: =ROUND(H206*H207,2) -> 135.69
A210: 13 | B210: CODEVASF | E210: COMPOSIÇÃO DE PREÇO UNITÁRIO | I210: =H219 -> 1.62 | J210: =H221 -> 1.97
B211: OBRA: | C211: =$C$2 -> PAVIMENTAÇÃO ASFÁLTICA EM CBUQ - VIAS DIVERSAS - BAIRROS N.SRA DO ROSÁRIO E CÍCERO PASSOS (PIRAPORA / MG) | G211: DATA: | H211: =$H$2 -> AGOSTO / 2023
B212: SERVIÇO: | C212: =VLOOKUP(A210,ORÇAMENTO!$A$10:$I$29,3) -> TRANSPORTE COM CAMINHÃO BASCULANTE, EM VIA URBANA PAVIMENTADA | E212: SINAPI | F212: =VLOOKUP(A210,ORÇAMENTO!$A$10:$I$29,4) -> 95877 | G212: UNIDADE: | H212: =VLOOKUP(A210,ORÇAMENTO!$A$10:$I$29,5) -> M3XKM
B214: TIPO ITEM | C214: CODIGO ITEM | D214: DESCRIÇÃO ITEM | E214: UNIDADE ITEM | F214: COEFICIENTE | G214: PRECO UNITARIO | H214: CUSTO TOTAL
B215: COMPOSICAO | C215: 89883 | D215: CAMINHÃO BASCULANTE 18 M3, COM CAVALO MECÂNICO DE CAPACIDADE MÁXIMA DE TRAÇÃO COMBINADO DE 45000 KG, POTÊNCIA 330 CV, INCLUSIVE SEMIREBOQUE COM CAÇAMBA METÁLICA | E215: CHP | F215: 0,0046000 | G215: 316,09 | H215: =ROUNDDOWN(F215*G215,2) -> 1.45
B216: COMPOSICAO | C216: 89884 | D216: CAMINHÃO BASCULANTE 18 M3, COM CAVALO MECÂNICO DE CAPACIDADE MÁXIMA DE TRAÇÃO COMBINADO DE 45000 KG, POTÊNCIA 330 CV, INCLUSIVE SEMIREBOQUE COM CAÇAMBA METÁLICA | E216: CHI | F216: 0,0020000 | G216: 86,09 | H216: 0.17
H217: 0
B218: PRODUÇÃO DA EQUIPE | E218: 1 | F218: CUSTO | H218: =SUM(H215:H217) -> 1.62
B219: TOTAL | H219: =H218/E218 -> 1.62 | I219: OK
B220: BDI % | H220: =1+$M$1 -> 1.2135
B221: TOTAL DO SERVIÇO - R$ | H221: =ROUND(H219*H220,2) -> 1.97
A223: 13.5 | B223: CODEVASF | E223: COMPOSIÇÃO DE PREÇO UNITÁRIO | I223: =H232 -> 0.66 | J223: =H234 -> 0.8
B224: OBRA: | C224: =$C$2 -> PAVIMENTAÇÃO ASFÁLTICA EM CBUQ - VIAS DIVERSAS - BAIRROS N.SRA DO ROSÁRIO E CÍCERO PASSOS (PIRAPORA / MG) | G224: DATA: | H224: =$H$2 -> AGOSTO / 2023
B225: SERVIÇO: | C225: =VLOOKUP(A223,ORÇAMENTO!$A$10:$I$29,3) -> TRANSPORTE COM CAMINHÃO BASCULANTE, EM VIA URBANA PAVIMENTADA - ADICIONAL PARA DMT EXCEDENTE A 30KM | E225: SINAPI | F225: =VLOOKUP(A223,ORÇAMENTO!$A$10:$I$29,4) -> 95427 | G225: UNIDADE: | H225: =VLOOKUP(A223,ORÇAMENTO!$A$10:$I$29,5) -> M3XKM
B227: TIPO ITEM | C227: CODIGO ITEM | D227: DESCRIÇÃO ITEM | E227: UNIDADE ITEM | F227: COEFICIENTE | G227: PRECO UNITARIO | H227: CUSTO TOTAL
B228: COMPOSICAO | C228: 89883 | D228: CAMINHÃO BASCULANTE 18 M3, COM CAVALO MECÂNICO DE CAPACIDADE MÁXIMA DE TRAÇÃO COMBINADO DE 45000 KG, POTÊNCIA 330 CV, INCLUSIVE SEMIREBOQUE COM CAÇAMBA METÁLICA | E228: CHP | F228: 0,0019000 | G228: 316,09 | H228: =ROUNDDOWN(F228*G228,2) -> 0.6
... 122 more rows

Sheet BDI SERV
B1: DETALHAMENTO DO BDI - SERVIÇOS
B4: Item | C4: Descrição dos Serviços | D4: % | E4: %
D5: PV | E5: CD
B7: 1 | C7: ADMINISTRAÇÃO CENTRAL | E7: 4.01
B8: 1.1 | C8: ESCRITÓRIO CENTRAL
B9: 1.2 | C9: VIAGENS
B10: 1.3 | C10: OUTROS
B12: 2 | C12: IMPOSTOS E TAXAS | D12: =SUM(D13:D16) -> 6.15 | E12: =SUM(E13:E16) -> 7.69
B13: 2.1 | C13: ISS (*) | D13: =5*0.5 -> 2.5 | E13: =ROUND(D13*1.2515,2) -> 3.13
B14: 2.2 | C14: PIS | D14: 0.65 | E14: 0.81
B15: 2.3 | C15: Cofins | D15: 3 | E15: 3.75
B16: 2.4 | C16: CONTRIBUIÇÃO PREVIDENCIÁRIA SOBRE A RENDA BRUTA | D16: 0 | E16: 0
B18: 3 | C18: TAXA DE RISCO | E18: =SUM(E19:E22) -> 0.96
B19: 3.1 | C19: SEGURO | E19: 0.2
B20: 3.2 | C20: RISCO | E20: 0.56
B21: 3.3 | C21: GARANTIA | E21: 0.2
B23: 4 | C23: DESPESAS FINANCEIRAS | E23: 1.11
B25: 5 | C25: LUCRO | E25: 7.3
C27: BDI - CALCULADO | E27: =ROUND((((1+(E7+E18)/100)*(1+E23/100)*(1+E25/100)/(1-D12/100)-1)*100),2) -> 21.35
A29: BDI = ((1+((AC+S+R+G)/100))x(1+DF/100)x(1+L/100)/(1-I/100)-1)*100
B31: BDI (CALCULADO): | D31: =ROUND((((1+((E7+E18)/100))*(1+E23/100)*(1+E25/100))/(1-D12/100)-1)*100,2) -> 21.35 | E31: %
A33: (*) ISS CONFORME LEI MUNICIPAL Nº 1.815 / 2005 - Considerando as deduções previstas no Art. 106 - § 2º (Dedução de 50% sem necessidade de comprovação)
A37: BDI EM CONFORMIDADE COM OS ACÓRDÃOS Nº 2369/2011 e ACÓRDÃO Nº 2.622/2013 - TCU - PLENÁRIO

Sheet BDI FORN
B1: DETALHAMENTO DO BDI - FORNECIMENTO (MATERIAL ASFÁLTICO)
B4: Item | C4: Descrição dos Serviços | D4: % | E4: %
D5: PV | E5: CD
B7: 1 | C7: ADMINISTRAÇÃO CENTRAL | E7: 3.72
B8: 1.1 | C8: ESCRITÓRIO CENTRAL
B9: 1.2 | C9: VIAGENS
B10: 1.3 | C10: OUTROS
B12: 2 | C12: IMPOSTOS E TAXAS | D12: =SUM(D13:D16) -> 3.65 | E12: =SUM(E13:E16) -> 4.56
B13: 2.1 | C13: ISS (*) | E13: =ROUND(D13*1.2515,2) -> 0
B14: 2.2 | C14: PIS | D14: 0.65 | E14: 0.81
B15: 2.3 | C15: Cofins | D15: 3 | E15: 3.75
B16: 2.4 | C16: CONTRIBUIÇÃO PREVIDENCIÁRIA SOBRE A RENDA BRUTA | D16: 0 | E16: 0
B18: 3 | C18: TAXA DE RISCO | E18: =SUM(E19:E22) -> 0.82
B19: 3.1 | C19: SEGURO | E19: 0.16
B20: 3.2 | C20: RISCO | E20: 0.5
B21: 3.3 | C21: GARANTIA | E21: 0.16
B23: 4 | C23: DESPESAS FINANCEIRAS | E23: 0.94
B25: 5 | C25: LUCRO | E25: 5
C27: BDI - CALCULADO | E27: =ROUND((((1+(E7+E18)/100)*(1+E23/100)*(1+E25/100)/(1-D12/100)-1)*100),2) -> 15
A29: BDI = ((1+((AC+S+R+G)/100))x(1+DF/100)x(1+L/100)/(1-I/100)-1)*100
B31: BDI (CALCULADO): | D31: =ROUND((((1+((E7+E18)/100))*(1+E23/100)*(1+E25/100))/(1-D12/100)-1)*100,2) -> 15 | E31: %
A37: BDI EM CONFORMIDADE COM OS ACÓRDÃOS Nº 2369/2011 e ACÓRDÃO Nº 2.622/2013 - TCU - PLENÁRIO

Sheet CRONOGRAMA
B1: CRONOGRAMA FÍSICO-FINANCEIRO
B2: OBRA: | C2: =ORÇAMENTO!C5 -> PAVIMENTAÇÃO ASFÁLTICA EM CBUQ - VIAS DIVERSAS - BAIRROS N.SRA DO ROSÁRIO E CÍCERO PASSOS (PIRAPORA / MG) | F2: VALOR: | G2: =ORÇAMENTO!I37 -> 3014817.24
F3: PRAZO: | G3: 180 DIAS
B5: ITEM | C5: ETAPAS/DESCRIÇAO | D5: FISICO/ FINANCEIRO | E5: TOTAL ETAPAS | F5: MÊS 1 | G5: MÊS 2 | H5: MÊS 3 | I5: MÊS 4 | J5: MÊS 5 | K5: MÊS 6 | L5: TOTAL
A6: A | B6: =VLOOKUP(A6,ORÇAMENTO!$A$9:$I$37,2) -> 1 | C6: =VLOOKUP(A6,ORÇAMENTO!$A$9:$I$37,3) -> SERVIÇOS PRELIMINARES | D6: FISICO | E6: =ROUND(E7/$G$2,4) -> 0.0657 | F6: 0.1 | G6: 0.2 | H6: 0.2 | I6: 0.2 | J6: 0.2 | K6: 0.1 | L6: =SUM(F6:K6) -> 1
D7: FINANCEIRO | E7: =ORÇAMENTO!I9 -> 198006.09 | F7: =ROUND($E$7*F6,2) -> 19800.61 | G7: 39601.22 | H7: 39601.22 | I7: 39601.22 | J7: 39601.22 | K7: 19800.61 | L7: =SUM(F7:K7) -> 198006.1
A8: B | B8: =VLOOKUP(A8,ORÇAMENTO!$A$9:$I$37,2) -> 2 | C8: =VLOOKUP(A8,ORÇAMENTO!$A$9:$I$37,3) -> TERRAPLANAGEM E PAVIMENTAÇÃO | D8: FISICO | E8: =ROUND(E9/$G$2,4) -> 0.2008 | F8: 0.1 | G8: 0.2 | H8: 0.2 | I8: 0.2 | J8: 0.2 | K8: 0.1 | L8: =SUM(F8:K8) -> 1
D9: FINANCEIRO | E9: =ORÇAMENTO!I15 -> 605481.35 | F9: =ROUND($E$9*F8,2) -> 60548.14 | G9: 121096.27 | H9: 121096.27 | I9: 121096.27 | J9: 121096.27 | K9: 60548.14 | L9: =SUM(F9:K9) -> 605481.36
A10: C | B10: =VLOOKUP(A10,ORÇAMENTO!$A$9:$I$37,2) -> 3 | C10: =VLOOKUP(A10,ORÇAMENTO!$A$9:$I$37,3) -> TRANSPORTE DE MATERIAIS | D10: FISICO | E10: =ROUND(E11/$G$2,4) -> 0.1974 | F10: 0.1 | G10: 0.2 | H10: 0.2 | I10: 0.2 | J10: 0.2 | K10: 0.1 | L10: =SUM(F10:K10) -> 1
D11: FINANCEIRO | E11: =ORÇAMENTO!I23 -> 595262 | F11: =ROUND($E$11*F10,2) -> 59526.2 | G11: 119052.4 | H11: 119052.4 | I11: 119052.4 | J11: 119052.4 | K11: 59526.2 | L11: =SUM(F11:K11)-0.04 -> 595261.96
A12: D | B12: =VLOOKUP(A12,ORÇAMENTO!$A$9:$I$37,2) -> 4 | C12: =VLOOKUP(A12,ORÇAMENTO!$A$9:$I$37,3) -> OBRAS COMPLEMENTARES | D12: FISICO | E12: =ROUND(E13/$G$2,4) -> 0.1526 | F12: 0 | G12: 0.2 | H12: 0.2 | I12: 0.2 | J12: 0.2 | K12: 0.2 | L12: =SUM(F12:K12) -> 1
D13: FINANCEIRO | E13: =ORÇAMENTO!I28 -> 460163.88 | F13: =ROUND($E$13*F12,2) -> 0 | G13: 92032.78 | H13: 92032.78 | I13: 92032.78 | J13: 92032.78 | K13: 92032.78 | L13: =SUM(F13:K13)-0.02 -> 460163.88
A14: E | B14: =VLOOKUP(A14,ORÇAMENTO!$A$9:$I$37,2) -> 5 | C14: =VLOOKUP(A14,ORÇAMENTO!$A$9:$I$37,3) -> FORNECIMENTOS - MATERIAL ASFÁLTICO (BDI DIFERENCIADO) | D14: FISICO | E14: =ROUND(E15/$G$2,4) -> 0.3834 | F14: 0.1 | G14: 0.2 | H14: 0.2 | I14: 0.2 | J14: 0.2 | K14: 0.1 | L14: =SUM(F14:K14) -> 1
D15: FINANCEIRO | E15: =ORÇAMENTO!I33 -> 1155903.92 | F15: =ROUND($E$15*F14,2) -> 115590.39 | G15: =ROUND($E$15*G14,2) -> 231180.78 | H15: 231180.78 | I15: 231180.78 | J15: 231180.78 | K15: 115590.39 | L15: =SUM(F15:K15)-0.02 -> 1155903.88
B16: TOTAL | D16: FISICO | E16: =SUM(F16:K16) -> 1.000000007 | F16: =F17/$E$17 -> 0.08473659252 | G16: =G17/$E$17 -> 0.2000000007 | H16: 0.2000000007 | I16: 0.2000000007 | J16: 0.2000000007 | K16: 0.1152634115 | L16: =SUM(F16:K16) -> 1.000000007
D17: FINANCEIRO | E17: =E11+E9+E7+E13+E15 -> 3014817.24 | F17: =F11+F9+F7+F13+F15 -> 255465.34 | G17: =G11+G9+G7+G13+G15 -> 602963.45 | H17: 602963.45 | I17: 602963.45 | J17: 602963.45 | K17: 347498.12 | L17: =SUM(F17:K17)-0.02 -> 3014817.24
B19: OBSERVAÇÕES:
